Workbook

Sheet MainPriceSheet
F2: Price Sheet for Pacific Buildings Inc
A3: Multiplier | B3: 1.10
A4: 14 Gauge
A5: Size | B5: Price + | D5: Size | E5: Price | H5: Size | I5: Price | K5: Size | L5: Price | O5: Size | P5: Price
A6: 12x20 | B6: =C6*B3 -> 2194.5 | C6: 1995 | D6: 12x25 | E6: =F6*B3 -> 2706 | F6: 2460 | H6: 12x30 | I6: =J6*B3 -> 3250.5 | J6: 2955 | K6: 12x35 | L6: =M6*B3 -> 3795 | M6: 3450 | O6: 12x40 | P6: =Q6*B3 -> 4339.5 | Q6: 3945
A7: 18x20 | B7: =C7*B3 -> 2524.5 | C7: 2295 | D7: 18x25 | E7: =F7*B3 -> 3250.5 | F7: 2955 | H7: 18x30 | I7: =J7*B3 -> 3795 | J7: 3450 | K7: 18x35 | L7: =M7*B3 -> 4521 | M7: 4110 | O7: 18x40 | P7: =Q7*B3 -> 5065.5 | Q7: 4605
A8: 20x20 | B8: =C8*B3 -> 2887.5 | C8: 2625 | D8: 20x25 | E8: =F8*B3 -> 3591.5 | F8: 3265 | H8: 20x30 | I8: =J8*B3 -> 4339.5 | J8: 3945 | K8: 20x35 | L8: =M8*B3 -> 5065.5 | M8: 4605 | O8: 20x40 | P8: =Q8*B3 -> 5791.5 | Q8: 5265
A9: 22x20 | B9: =C9*B3 -> 3432 | C9: 3120 | D9: 22x25 | E9: =F9*B3 -> 4339.5 | F9: 3945 | H9: 22x30 | I9: =J9*B3 -> 5247 | J9: 4770 | K9: 22x35 | L9: =M9*B3 -> 6154.5 | M9: 5595 | O9: 22x40 | P9: =Q9*B3 -> 7062 | Q9: 6420
A10: 24x20 | B10: =C10*B3 -> 4158 | C10: 3780 | D10: 24x25 | E10: =F10*B3 -> 5247 | F10: 4770 | H10: 24x30 | I10: =J10*B3 -> 6336 | J10: 5760 | K10: 24x35 | L10: =M10*B3 -> 7425 | M10: 6750 | O10: 24x40 | P10: =Q10*B3 -> 8580 | Q10: 7800
A11: 26x20 | B11: =C11*B3 -> 4884 | C11: 4440 | D11: 26x25 | E11: =F11*B3 -> 6154.5 | F11: 5595 | H11: 26x30 | I11: =J11*B3 -> 7425 | J11: 6750 | K11: 26x35 | L11: =M11*B3 -> 8695.5 | M11: 7905 | O11: 26x40 | P11: =Q11*B3 -> 9966 | Q11: 9060
A12: 28x20 | B12: =C12*B3 -> 5610 | C12: 5100 | D12: 28x25 | E12: =F12*B3 -> 7062 | F12: 6420 | H12: 28x30 | I12: =J12*B3 -> 8514 | J12: 7740 | K12: 28x35 | L12: =M12*B3 -> 9966 | M12: 9060 | O12: 28x40 | P12: =Q12*B3 -> 11418 | Q12: 10380
A13: 30x20 | B13: =C13*B3 -> 6336 | C13: 5760 | D13: 30x25 | E13: =F13*B3 -> 7969.5 | F13: 7245 | H13: 30x30 | I13: =J13*B3 -> 9603 | J13: 8730 | K13: 30x35 | L13: =M13*B3 -> 11236.5 | M13: 10215 | O13: 30x40 | P13: =Q13*B3 -> 12870 | Q13: 11700
A16: 12 Gauge | C16: 1270.5 per 5ft
A17: Size | B17: Price | D17: Size | E17: Price | H17: Size | I17: Price | L17: Size | M17: Price | P17: Size | Q17: Price
A18: 12x20 | B18: =C18*B3 -> 2524.5 | C18: 2295 | D18: 12x25 | E18: =F18*B3 -> 3250.5 | F18: 2955 | H18: 12x30 | I18: =J18*B3 -> 3795 | J18: 3450 | L18: 12x35 | M18: =N18*B3 -> 4521 | N18: 4110 | P18: 12x40 | Q18: =R18*B3 -> 5065.5 | R18: 4605
A19: 18x20 | B19: =C19*B3 -> 3069 | C19: 2790 | D19: 18x25 | E19: =F19*B3 -> 3976.5 | F19: 3615 | H19: 18x30 | I19: =J19*B3 -> 4702.5 | J19: 4275 | L19: 18x35 | M19: =N19*B3 -> 5428.5 | N19: 4935 | P19: 18x40 | Q19: =R19*B3 -> 6154.5 | R19: 5595
A20: 20x20 | B20: =C20*B3 -> 3613.5 | C20: 3285 | D20: 20x25 | E20: =F20*B3 -> 4521 | F20: 4110 | H20: 20x30 | I20: =J20*B3 -> 5428.5 | J20: 4935 | L20: 20x35 | M20: =N20*B3 -> 6336 | N20: 5760 | P20: 20x40 | Q20: =R20*B3 -> 7243.5 | R20: 6585
A21: 22x20 | B21: =C21*B3 -> 4339.5 | C21: 3945 | D21: 22x25 | E21: =F21*B3 -> 5428.5 | F21: 4935 | H21: 22x30 | I21: =J21*B3 -> 6517.5 | J21: 5925 | L21: 22x35 | M21: =N21*B3 -> 7606.5 | N21: 6915 | P21: 22x40 | Q21: =R21*B3 -> 8695.5 | R21: 7905
A22: 24x20 | B22: =C22*B3 -> 5065.5 | C22: 4605 | D22: 24x25 | E22: =F22*B3 -> 6336 | F22: 5760 | H22: 24x30 | I22: =J22*B3 -> 7606.5 | J22: 6915 | L22: 24x35 | M22: =N22*B3 -> 8877 | N22: 8070 | P22: 24x40 | Q22: =R22*B3 -> 10147.5 | R22: 9225
A23: 26x20 | B23: =C23*B3 -> 5791.5 | C23: 5265 | D23: 26x25 | E23: =F23*B3 -> 7243.5 | F23: 6585 | H23: 26x30 | I23: =J23*B3 -> 8695.5 | J23: 7905 | L23: 26x35 | M23: =N23*B3 -> 10147.5 | N23: 9225 | P23: 26x40 | Q23: =R23*B3 -> 11599.5 | R23: 10545
A24: 28x20 | B24: =C24*B3 -> 6517.5 | C24: 5925 | D24: 28x25 | E24: =F24*B3 -> 8151 | F24: 7410 | H24: 28x30 | I24: =J24*B3 -> 9784.5 | J24: 8895 | L24: 28x35 | M24: =N24*B3 -> 11418 | N24: 10380 | P24: 28x40 | Q24: =R24*B3 -> 13051.5 | R24: 11865
A25: 30x20 | B25: =C25*B3 -> 7243.5 | C25: 6585 | D25: 30x25 | E25: =F25*B3 -> 9058.5 | F25: 8235 | H25: 30x30 | I25: =J25*B3 -> 10873.5 | J25: 9885 | L25: 30x35 | M25: =N25*B3 -> 12688.5 | N25: 11535 | P25: 30x40 | Q25: =R25*B3 -> 14503.5 | R25: 13185
A27: A Frame Options | G27: 20' long | L27: 25' long | O27: 30' Long | R27: 35' Long | U27: 40' Long
A28: Boxed Eave Style (Horixontal Roof) | G28: =I28*B3 -> 137.5 | I28: 125 | L28: =M28*B3 -> 165 | M28: 150 | O28: =P28*B3 -> 192.5 | P28: 175 | R28: =S28*B3 -> 220 | S28: 200 | U28: =V28*B3 -> 247.5 | V28: 225
A29: Vertical Style | G29: =I29*B3 -> 660 | I29: 600 | L29: =M29*B3 -> 819.5 | M29: 745 | O29: =P29*B3 -> 984.5 | P29: 895 | R29: =S29*B3 -> 1149.5 | S29: 1045 | U29: =V29*B3 -> 1314.5 | V29: 1195
C31: Price | E31: Price | G31: Price | I31: Price | K31: Price
A32: Leg Hieght | C32: 20' long | E32: 25' long | G32: 30' long | I32: 35' long | K32: 40' long
A33: 6 feet | C33: STD | E33: STD | G33: STD | I33: STD | K33: STD
A34: 7 feet | B34: 160 | C34: =B34*B3 -> 176 | D34: 190 | E34: =D34*B3 -> 209 | F34: 215 | G34: =F34*B3 -> 236.5 | H34: 245 | I34: =H34*B3 -> 269.5 | J34: 270 | K34: =J34*B3 -> 297
A35: 8 feet | B35: 245 | C35: =B35*B3 -> 269.5 | D35: 290 | E35: =D35*B3 -> 319 | F35: 335 | G35: =F35*B3 -> 368.5 | H35: 385 | I35: =H35*B3 -> 423.5 | J35: 435 | K35: =J35*B3 -> 478.5
A36: 9 feet | B36: 325 | C36: =B36*B3 -> 357.5 | D36: 390 | E36: =D36*B3 -> 429 | F36: 465 | G36: =F36*B3 -> 511.5 | H36: 535 | I36: =H36*B3 -> 588.5 | J36: 600 | K36: =J36*B3 -> 660
A37: 10 feet | B37: 410 | C37: =B37*B3 -> 451 | D37: 495 | E37: =D37*B3 -> 544.5 | F37: 590 | G37: =F37*B3 -> 649 | H37: 675 | I37: =H37*B3 -> 742.5 | J37: 765 | K37: =J37*B3 -> 841.5
A38: 11 feet | B38: 490 | C38: =B38*B3 -> 539 | D38: 600 | E38: =D38*B3 -> 660 | F38: 710 | G38: =F38*B3 -> 781 | H38: 820 | I38: =H38*B3 -> 902 | J38: 930 | K38: =J38*B3 -> 1023
A39: 12 feet | B39: 575 | C39: =B39*B3 -> 632.5 | D39: 700 | E39: =D39*B3 -> 770 | F39: 830 | G39: =F39*B3 -> 913 | H39: 965 | I39: =H39*B3 -> 1061.5 | J39: 1095 | K39: =J39*B3 -> 1204.5
A40: 13 feet | B40: 660 | C40: =B40*B3 -> 726 | D40: 800 | E40: =D40*B3 -> 880 | F40: 950 | G40: =F40*B3 -> 1045 | H40: 1110 | I40: =H40*B3 -> 1221 | J40: 1260 | K40: =J40*B3 -> 1386
A41: 14 feet | B41: 740 | C41: =B41*B3 -> 814 | D41: 905 | E41: =D41*B3 -> 995.5 | F41: 1070 | G41: =F41*B3 -> 1177 | H41: 1255 | I41: =H41*B3 -> 1380.5 | J41: 1425 | K41: =J41*B3 -> 1567.5
A42: 15 feet | B42: 825 | C42: =B42*B3 -> 907.5 | D42: 1010 | E42: =D42*B3 -> 1111 | F42: 1195 | G42: =F42*B3 -> 1314.5 | H42: 1395 | I42: =H42*B3 -> 1534.5 | J42: 1590 | K42: =J42*B3 -> 1749
A43: 16 feet | B43: 905 | C43: =B43*B3 -> 995.5 | D43: 1110 | E43: =D43*B3 -> 1221 | F43: 1325 | G43: =F43*B3 -> 1457.5 | H43: 1545 | I43: =H43*B3 -> 1699.5 | J43: 1755 | K43: =J43*B3 -> 1930.5
A47: Close Both Sides | C47: 20' long | D47: Price | E47: 25' long | F47: Price | G47: 30' long | H47: Price | I47: 35' long | J47: Price | K47: 40' long | L47: Price
A49: Add for Vertical Sides | C49: 450 | D49: =C49*B3 -> 495 | E49: 500 | F49: =E49*B3 -> 550 | G49: 550 | H49: =G49*B3 -> 605 | I49: 620 | J49: =I49*B3 -> 682 | K49: 680 | L49: =K49*B3 -> 748
A50: 6 feet | C50: 565 | D50: =C50*B3 -> 621.5 | E50: 650 | F50: =E50*B3 -> 715 | G50: 745 | H50: =G50*B3 -> 819.5 | I50: 850 | J50: =I50*B3 -> 935 | K50: 965 | L50: =K50*B3 -> 1061.5
A51: 7 feet | C51: 625 | D51: =C51*B3 -> 687.5 | E51: 730 | F51: =E51*B3 -> 803 | G51: 845 | H51: =G51*B3 -> 929.5 | I51: 970 | J51: =I51*B3 -> 1067 | K51: 1105 | L51: =K51*B3 -> 1215.5
A52: 8 feet | C52: 690 | D52: =C52*B3 -> 759 | E52: 815 | F52: =E52*B3 -> 896.5 | G52: 950 | H52: =G52*B3 -> 1045 | I52: 1095 | J52: =I52*B3 -> 1204.5 | K52: 1250 | L52: =K52*B3 -> 1375
A53: 9 feet | C53: 755 | D53: =C53*B3 -> 830.5 | E53: 900 | F53: =E53*B3 -> 990 | G53: 1055 | H53: =G53*B3 -> 1160.5 | I53: 1220 | J53: =I53*B3 -> 1342 | K53: 1395 | L53: =K53*B3 -> 1534.5
A54: 10 feet | C54: 825 | D54: =C54*B3 -> 907.5 | E54: 990 | F54: =E54*B3 -> 1089 | G54: 1165 | H54: =G54*B3 -> 1281.5 | I54: 1350 | J54: =I54*B3 -> 1485 | K54: 1545 | L54: =K54*B3 -> 1699.5
A55: 11 feet | C55: 895 | D55: =C55*B3 -> 984.5 | E55: 1080 | F55: =E55*B3 -> 1188 | G55: 1275 | H55: =G55*B3 -> 1402.5 | I55: 1480 | J55: =I55*B3 -> 1628 | K55: 1695 | L55: =K55*B3 -> 1864.5
A56: 12 feet | C56: 970 | D56: =C56*B3 -> 1067 | E56: 1175 | F56: =E56*B3 -> 1292.5 | G56: 1390 | H56: =G56*B3 -> 1529 | I56: 1615 | J56: =I56*B3 -> 1776.5 | K56: 1850 | L56: =K56*B3 -> 2035
A57: 13 feet | C57: 1115 | D57: =C57*B3 -> 1226.5 | E57: 1340 | F57: =E57*B3 -> 1474 | G57: 1575 | H57: =G57*B3 -> 1732.5 | I57: 1820 | J57: =I57*B3 -> 2002 | K57: 2075 | L57: =K57*B3 -> 2282.5
A58: 14 feet | C58: 1195 | D58: =C58*B3 -> 1314.5 | E58: 1440 | F58: =E58*B3 -> 1584 | G58: 1695 | H58: =G58*B3 -> 1864.5 | I58: 1960 | J58: =I58*B3 -> 2156 | K58: 2235 | L58: =K58*B3 -> 2458.5
A59: 15 feet | C59: 1275 | D59: =C59*B3 -> 1402.5 | E59: 1540 | F59: =E59*B3 -> 1694 | G59: 1815 | H59: =G59*B3 -> 1996.5 | I59: 2100 | J59: =I59*B3 -> 2310 | K59: 2395 | L59: =K59*B3 -> 2634.5
A60: 16 feet | C60: 1355 | D60: =C60*B3 -> 1490.5 | E60: 1640 | F60: =E60*B3 -> 1804 | G60: 1935 | H60: =G60*B3 -> 2128.5 | I60: 2240 | J60: =I60*B3 -> 2464 | K60: 2555 | L60: =K60*B3 -> 2810.5
A64: Cloase End / Price per End. | C64: 12 | D64: Price | E64: 18 | F64: Price | G64: 20 | H64: Price | I64: 22 | J64: Price | K64: 24 | L64: Price | M64: 26 | N64: Price | O64: 28 | P64: Price | Q64: 30 | R64: Price
A66: Add for Vertical End | C66: 500 | D66: =B3*C66 -> 550 | E66: 520 | F66: =B3*E66 -> 572 | G66: 580 | H66: =B3*G66 -> 638 | I66: 650 | J66: =B3*I66 -> 715 | K66: 700 | L66: =B3*K66 -> 770 | M66: 850 | N66: =B3*M66 -> 935 | O66: 875 | P66: =N3*O66 -> 0 | Q66: 950 | R66: =B3*Q66 -> 1045
A67: 6 feet | C67: 565 | D67: =B3*C67 -> 621.5 | E67: 695 | F67: =B3*E67 -> 764.5 | G67: 750 | H67: =B3*G67 -> 825 | I67: 895 | J67: =B3*I67 -> 984.5 | K67: 930 | L67: =B3*K67 -> 1023 | M67: 1180 | N67: =B3*M67 -> 1298 | O67: 1295 | P67: =B3*O67 -> 1424.5 | Q67: 1410 | R67: =B3*Q67 -> 1551
A68: 7 feet | C68: 650 | D68: =B3*C68 -> 715 | E68: 755 | F68: =B3*E68 -> 830.5 | G68: 815 | H68: =B3*G68 -> 896.5 | I68: 965 | J68: =B3*I68 -> 1061.5 | K68: 1010 | L68: =B3*K68 -> 1111 | M68: 1265 | N68: =B3*M68 -> 1391.5 | O68: 1385 | P68: =B3*O68 -> 1523.5 | Q68: 1505 | R68: =B3*Q68 -> 1655.5
A69: 8 feet | C69: 680 | D69: =B3*C69 -> 748 | E69: 825 | F69: =B3*E69 -> 907.5 | G69: 890 | H69: =B3*G69 -> 979 | I69: 1050 | J69: =B3*I69 -> 1155 | K69: 1100 | L69: =B3*K69 -> 1210 | M69: 1350 | N69: =B3*M69 -> 1485 | O69: 1475 | P69: =B3*O69 -> 1622.5 | Q69: 1600 | R69: =B3*Q69 -> 1760
A70: 9 feet | C70: 710 | D70: =B3*C70 -> 781 | E70: 905 | F70: =B3*E70 -> 995.5 | G70: 975 | H70: =B3*G70 -> 1072.5 | I70: 1150 | J70: =B3*I70 -> 1265 | K70: 1200 | L70: =B3*K70 -> 1320 | M70: 1435 | N70: =B3*M70 -> 1578.5 | O70: 1565 | P70: =B3*O70 -> 1721.5 | Q70: 1695 | R70: =B3*Q70 -> 1864.5
A71: 10 feet | C71: 800 | D71: =B3*C71 -> 880 | E71: 995 | F71: =B3*E71 -> 1094.5 | G71: 1070 | H71: =B3*G71 -> 1177 | I71: 1265 | J71: =B3*I71 -> 1391.5 | K71: 1310 | L71: =B3*K71 -> 1441 | M71: 1520 | N71: =B3*M71 -> 1672 | O71: 1655 | P71: =B3*O71 -> 1820.5 | Q71: 1790 | R71: =B3*Q71 -> 1969
A72: 11 feet | C72: 860 | D72: =B3*C72 -> 946 | E72: 1095 | F72: =B3*E72 -> 1204.5 | G72: 1175 | H72: =B3*G72 -> 1292.5 | I72: 1395 | J72: =B3*I72 -> 1534.5 | K72: 1430 | L72: =B3*K72 -> 1573 | M72: 1605 | N72: =B3*M72 -> 1765.5 | O72: 1745 | P72: =B3*O72 -> 1919.5 | Q72: 1885 | R72: =B3*Q72 -> 2073.5
A73: 12 feet | C73: 920 | D73: =B3*C73 -> 1012 | E73: 1205 | F73: =B3*E73 -> 1325.5 | G73: 1290 | H73: =B3*G73 -> 1419 | I73: 1540 | J73: =B3*I73 -> 1694 | K73: 1560 | L73: =B3*K73 -> 1716 | M73: 1690 | N73: =B3*M73 -> 1859 | O73: 1835 | P73: =B3*O73 -> 2018.5 | Q73: 1980 | R73: =B3*Q73 -> 2178
A74: 13 feet | C74: 1110 | D74: =B3*C74 -> 1221 | E74: 1395 | F74: =B3*E74 -> 1534.5 | G74: 1485 | H74: =B3*G74 -> 1633.5 | I74: 1655 | J74: =B3*I74 -> 1820.5 | K74: 1785 | L74: =B3*K74 -> 1963.5 | M74: 1820 | N74: =B3*M74 -> 2002 | O74: 1995 | P74: =B3*O74 -> 2194.5 | Q74: 2145 | R74: =B3*Q74 -> 2359.5
A75: 14 feet | C75: 1240 | D75: =B3*C75 -> 1364 | E75: 1525 | F75: =B3*E75 -> 1677.5 | G75: 1640 | H75: =B3*G75 -> 1804 | I75: 1805 | J75: =B3*I75 -> 1985.5 | K75: 1870 | L75: =B3*K75 -> 2057 | M75: 1985 | N75: =B3*M75 -> 2183.5 | O75: 2100 | P75: =B3*O75 -> 2310 | Q75: 2240 | R75: =B3*Q75 -> 2464
A76: 15 feet | C76: 1370 | D76: =B3*C76 -> 1507 | E76: 1655 | F76: =B3*E76 -> 1820.5 | G76: 1795 | H76: =B3*G76 -> 1974.5 | I76: 1955 | J76: =B3*I76 -> 2150.5 | K76: 1955 | L76: =B3*K76 -> 2150.5 | M76: 2150 | N76: =B3*M76 -> 2365 | O76: 2205 | P76: =B3*O76 -> 2425.5 | Q76: 2335 | R76: =B3*Q76 -> 2568.5
A77: 16 feet | C77: 1500 | D77: =B3*C77 -> 1650 | E77: 1785 | F77: =B3*E77 -> 1963.5 | G77: 1950 | H77: =B3*G77 -> 2145 | I77: 2105 | J77: =B3*I77 -> 2315.5 | K77: 2040 | L77: =B3*K77 -> 2244 | M77: 2315 | N77: =B3*M77 -> 2546.5 | O77: 2310 | P77: =B3*O77 -> 2541 | Q77: 2430 | R77: =B3*Q77 -> 2673
A80: Gable Ends | D80: Price | G80: Extra Trusses | J80: Price | L80: Roll up Doors | N80: Price | Q80: Heavy duty roll up doors | S80: Price
A81: 12'-20' wide | C81: 250 | D81: =B3*C81 -> 275 | E81: per end | G81: 12'-24' Wide | I81: 250 | J81: =B3*I81 -> 275 | L81: 6x7 | M81: 495 | N81: =M81*B3 -> 544.5 | Q81: 10x12 | R81: 2210 | S81: =R81*B3 -> 2431
A82: 22'-24' wide | C82: 275 | D82: =B3*C82 -> 302.5 | E82: per end | G82: 26'-30' Wide | I82: 365 | J82: =B3*I82 -> 401.5 | L82: 8x7 | M82: 550 | N82: =M82*B3 -> 605 | Q82: 10x14 | R82: 2650 | S82: =R82*B3 -> 2915
A83: 26'-30' wide | C83: 375 | D83: =B3*C83 -> 412.5 | E83: per end | L83: 9x7 | M83: 640 | N83: =M83*B3 -> 704 | Q83: 11x14 | R83: 2745 | S83: =R83*B3 -> 3019.5
A84: ADD $100 for Vertical Gable | D84: 100 | G84: Add 20 for each foot of extra hieght | L84: 10x8 | M84: 720 | N84: =M84*B3 -> 792 | Q84: 11x16 | R84: 3620 | S84: =R84*B3 -> 3982
L85: 10x10 | M85: 815 | N85: =M85*B3 -> 896.5 | Q85: 12x12 | R85: 2420 | S85: =R85*B3 -> 2662
L86: Leg hieght must be one foot taller than Door hieght. | Q86: 12x14 | R86: 3078 | S86: =R86*B3 -> 3385.8
D87: Price | K87: Price | O87: Price | Q87: 14x12 | R87: 3158 | S87: =R87*B3 -> 3473.8
A88: Walk in Door | C88: 325 | D88: =C88*B3 -> 357.5 | F88: Concrete Anchors | I88: 15 | K88: =I88*B3 -> 16.5 | M88: Individual Sheet Metal *Not Installed* | Q88: 14x14 | R88: 3790 | S88: =R88*B3 -> 4169
A89: Windows 30x30 | C89: 255 | D89: =C89*B3 -> 280.5 | F89: Mobile Home Anchors | I89: 40 | K89: =I89*B3 -> 44 | M89: 21' | N89: 130 | O89: =N89*B3 -> 143 | Q89: 14x15 | R89: 3790 | S89: =R89*B3 -> 4169
F90: Asphalt Anchors | I90: 40 | K90: =I90*B3 -> 44 | M90: 26' | N90: 165 | O90: =N90*B3 -> 181.5 | Q90: 16x10 | R90: 3355 | S90: =R90*B3 -> 3690.5
F91: Welded L Brackets | I91: 30 | K91: =I91*B3 -> 33 | M91: 31' | N91: 190 | O91: =N91*B3 -> 209 | Q91: 16x12 | R91: 4050 | S91: =R91*B3 -> 4455
Q92: 16x14 | R92: 4266 | S92: =R92*B3 -> 4692.6
D93: Price | Q93: 16x16 | R93: 4580 | S93: =R93*B3 -> 5038
A94: Breakouts | C94: side 250 | D94: 275 | Q94: 18x10 | R94: 3655 | S94: =R94*B3 -> 4020.5
C95: front 100 | D95: 110 | Q95: 20x12 | R95: 4562 | S95: =R95*B3 -> 5018.2
Q96: 20x16 | R96: 11578 | S96: =R96*B3 -> 12735.8
Q97: 20x18 | R97: 12780 | S97: =R97*B3 -> 14058
A98: Head Channels | D98: Price | F98: Headers | I98: Price | K98: Heavy Duty Braces | Q98: 20x20 | R98: 14358 | S98: =R98*B3 -> 15793.8
A99: 20'long | C99: 80 | D99: =C99*B3 -> 88 | F99: 10 to 12 | H99: 250 | I99: =H99*B3 -> 275 | N99: Price
A100: 25' long | C100: 100 | D100: =C100*B3 -> 110 | F100: 15 to 20 | H100: 500 | I100: =H100*B3 -> 550 | K100: 12' to 20' | M100: 50 | N100: =M100*B3 -> 55 | Q100: Overhead Doors | S100: NO GLASS | T100: Price
A101: 30' Long | C101: 120 | D101: =C101*B3 -> 132 | F101: 25 to 30 | H101: 750 | I101: =H101*B3 -> 825 | K101: 22' to 24' | M101: 65 | N101: =M101*B3 -> 71.5 | Q101: 10x10 | S101: 1780 | T101: =S101*B3 -> 1958 | U101: Insulated
A102: 40' long | C102: 160 | D102: =C102*B3 -> 176 | F102: 35 to 40 | H102: 1000 | I102: =H102*B3 -> 1100 | K102: 25' to 30' | M102: 75 | N102: =M102*B3 -> 82.5 | Q102: 12x12 | S102: 1815 | T102: =S102*B3 -> 1996.5 | U102: NOT insulated
A103: 45' long | C103: 180 | D103: =C103*B3 -> 198 | F103: 45 to 50 | H103: 1250 | I103: =H103*B3 -> 1375 | Q103: 14x12 | S103: 2032 | T103: =S103*B3 -> 2235.2 | U103: NOT insulated
A104: 50' long | C104: 200 | D104: =C104*B3 -> 220 | F104: 55 to 60 | H104: 1500 | I104: =H104*B3 -> 1650 | K104: Braces standard | Q104: 16x8 | S104: 1550 | T104: =S104*B3 -> 1705 | U104: NOT insulated
F105: 65 to 70 | H105: 1750 | I105: =H105*B3 -> 1925 | K105: 4' | M105: 25 | N105: =M105*B3 -> 27.5 | Q105: 16x9 | S105: 2050 | T105: =S105*B3 -> 2255 | U105: NOT insulated
A106: Connection Fees | K106: 7' | M106: 35 | N106: =M106*B3 -> 38.5 | Q106: 16x10 | S106: 2154 | T106: =S106*B3 -> 2369.4 | U106: NOT insulated
A107: Side to Side | B107: 25 | C107: =B107*B3 -> 27.5 | Q107: 16x12 | S107: 2362 | T107: =S107*B3 -> 2598.2 | U107: NOT insulated
A108: End to End | B108: 150 | C108: =B108-B3 -> 148.9
A113: Snow Load requirements
A114: 30 PSF Vertical 12 gauge add 1 truss and 2 extra head channels
A115: 40PSF 30" apart, Extra Head Channel
A116: 50PSF 18" apart, Heavy Duty Braces, Extra Head Channels
A117: 55-60PSF 16" apart, Heavey duty Braces, Extra Head Channels
A118: 80 or more PSF 16" apart Heay Duty Braces, Extra Head Channels, Double Post System On Concrete.
D119: Price | K119: Price
A120: Framed Sines | C120: 75 | D120: =C120*B3 -> 82.5 | G120: Vents | I120: 14"x24" | J120: 200 | K120: =J120*B3 -> 220
A122: Panels | C122: Price | E122: Sky Lights | G122: Price | I122: Trims | L122: Price
A123: 21' | B123: 95 | C123: =B123*B3 -> 104.5 | E123: 3x5 | F123: 175 | G123: =F123*B3 -> 192.5 | I123: Box Eave Trim 10' | K123: 35 | L123: =K123*B3 -> 38.5
A124: 26' | B124: 120 | C124: =B124*B3 -> 132 | E124: 3x6 | F124: 185 | G124: =F124*B3 -> 203.5 | I124: Ridge Cap 10' | K124: 35 | L124: =K124*B3 -> 38.5
A125: 31' | B125: 140 | C125: =B125*B3 -> 154 | E125: 3x7 | F125: 195 | G125: =F125*B3 -> 214.5 | I125: Corner Trim 10' | K125: 35 | L125: =K125*B3 -> 38.5
E126: 3x10 | F126: 205 | G126: =F126*B3 -> 225.5 | I126: Flashing 10' | K126: 35 | L126: =K126*B3 -> 38.5
D127: PolyCarbonate | E127: 3x21 | F127: 175 | G127: =F127*B3 -> 192.5 | I127: Verticle Box Eave 10' | K127: 35 | L127: =K127*B3 -> 38.5
I128: L Trim | K128: 15 | L128: =K128*B3 -> 16.5
I129: J Trim | K129: 15 | L129: =K129*B3 -> 16.5
A130: Square Tubing | C130: Price | D130: Price per ft | F130: Panels 26 Gauge | H130: Price
A131: 20' 12 gauge | B131: 140 | C131: =B131*B3 -> 154 | D131: 7.70 per foot | F131: 21' | G131: 95 | H131: =G131*B3 -> 104.5
A132: 20 14 Gauge | B132: 120 | C132: =B132*B3 -> 132 | D132: 6.60 per foot | F132: 26' | G132: 120 | H132: =G132*B3 -> 132
F133: 31' | G133: 140 | H133: =G133*B3 -> 154

Sheet OrderSheet
A2: 14 Gauge | N2: 12 Gauge
C3: 20' | E3: 25' | G3: 30' | I3: 25' | K3: 40'
A4: 12' | D4: FALSE | F4: ` | H4: FALSE | J4: FALSE | L4: FALSE
A5: 18' | D5: FALSE | F5: FALSE | H5: FALSE | J5: FALSE | L5: FALSE
A6: 20' | D6: FALSE | F6: FALSE | H6: FALSE | J6: FALSE | L6: FALSE
A7: 22' | D7: FALSE | F7: TRUE | H7: TRUE | J7: TRUE | L7: TRUE
A8: 24' | D8: FALSE | F8: FALSE | H8: FALSE | J8: FALSE | L8: FALSE
A9: 26' | D9: FALSE | F9: FALSE | H9: FALSE | J9: FALSE | L9: FALSE
A10: 28' | D10: FALSE | F10: FALSE | H10: FALSE | J10: FALSE | L10: FALSE
A11: 30' | D11: FALSE | F11: FALSE | H11: FALSE | J11: FALSE | L11: FALSE

Sheet Insulation
A1: Insulation Price
B3: 4' wide x 175' long or 700sqft | F3: 500 | G3: =F3*MainPriceSheet!B3 -> 550 | H3: per roll
B6: Rated @ | D6: R15
B8: 22 | D8: 25 | F8: 9
B9: Width | C9: x | D9: Length | E9: x | F9: Height
G12: 0.1
A13: Roof | D13: =((B8+3)*D8)*2 -> 1250 | G13: =D13*1.1 -> 1375
A15: Sides (both sides) | D15: =((F8+2)*D8*2)*2 -> 1100 | G15: =D15*1.1 -> 1210
A17: Ends (Both Ends) | D17: =((F8+3)*B8*2)*2 -> 1056 | G17: =D17*1.1 -> 1161.6
A19: Fully insulated | D19: =D13+D15+D17 -> 3406 | G19: =D19*1.1 -> 3746.6

Sheet Estimate
A1: GALVANIZED STEEL FRAMING ANCHORS FOR GROUND INSTALLATION | O1: Pacific Metal Buildings Inc. 270 Old Hwy 99 • PO Box 485 • Maxwell, CA 95955 Main 530-438-2777 • Secondary 530-438-2877 Toll Free 1-877-604-2777 • Fax 530-438-2878 Invoice #
A3: Dealer | B3: Norma/Jefferey Morse | N3: Phone Date
A4: Buyer Name(s) | Y4: County
A5: Buyer Address City | V5: State | X5: Zip
A6: Phone (alternative) Email
A7: Site (unit location if different from above)
A8: Stora+e Buildin+ Classical St/le Boxed %a)e St/e &ertical 9oof St/le Warehouse
A9: Description | F9: Width | H9: Roof Length | J9: Frame Length | M9: Leg Height | O9: Gauge | R9: Price | T9: ALL ORDERS C.O.D Price: be processed if the Tax: Note: Orders will not dealer collects more than 10%, 12%, 15% Labor: at sale price. Plans: Tax Rate 7.75 % Equipment: Total: 10% down payment before taxes $ Balance due at installation
A11: Option | G11: Classical Style | L11: Boxed eave Style
G12: Residential Vertical Roof/Horizontal Sides | L12: All Vertical Roof/Sides
G13: Leg Height | K13: Size
A26: Colors: | D26: Roof | G26: Sides | L26: Ends | Q26: Trim | T26: Site Level | U26: Yes No | W26: Electricity Yes | AB26: No
D27: Ridge Cap Color (Vertical Style Only) | R27: Installation | T27: Ground | U27: Cement | W27: Other (specify)
A43: 1) All sales are C.O.D. payment of balance in full due at time of installation. 2) The customer is responsible for informing the installers of any underground cables, gas lines, or any other utility lines. We will not be responsible for any damages to un-locked utilities. 3) If there is a price discrepancy over $20.00, the company reserves the right to cancel the order. 4) All quoted prices include installation of level ground at ground level only. 5) It is the sole responsibility of the customer to check for permits or restrictions regarding installation of the product. Some state and local ordinances may require a foundation prior to installation. A set of free generic engineer drawings can be provided with every standard size building with proper anchoring. These drawings are not guaranteed to work for all permit processes BUT, for an additional fee and upon request per your building department; you may purchase engineered specifications and Calculations. 6) It is highly recommended that all ground, gravel or blacktop installation be securely fastened with mobile home anchors. In the case of installation on concrete, it is highly recommended that concrete anchors are utilized. Pacific Metal Buildings Inc. will not be responsible for any damages to the structure if the customer chooses to use only the rebar anchors provided with the carport and failure to utilize the proper anchoring method will void your warranty. Please note that the customer is responsible for patching blacktop after anchors are installed. 7) Thewarrantywillbevoidiftheunitisinstalledbyanyoneotherthanourapprovedindependentcontractors. Warrantyisalsovoidifcustomertamperswithunitsuchasinstallingfans, drilling ontubing, etc. 8) Your lot must be level or the unit will be installed “AS IS” on the lot. Additionally, it is the customer’s sole responsibility for insuring the installation area is adequately prepared/cleared for installation. Installers will need adequate space for the construction of your building. A minimum of 3’ft-4’ft clearance all around the building is required as well as clear space above the peak height. If, upon arrival, the installers find the lot in an unsuitable condition, a $350 Restocking fee will be added to the balance owed. INITIAL 9) The quoted price above does not include any extra tasks or requests by the customer. Any such additional tasks or requests will require a separate quotation and approved by Pacific Metal Buildings Inc. 10) For ALL additions, a $150.00 return fee will be added to your balance. 11) Buildings over 13’ tall or buildings 30’ wide as tall as 12’ tall will require a lift onsite for installation. PMB inc., will bill for a lift onsite unless you can provide one. The lift must reach at least 20’ft+. 12) We highly recommend a Vertical Roof line on units over 30’ long to avoid leaks. Classical and Box Eave Styles ove 30’ long will not have any leak warranty. INITIAL 13) Limited Warranty. Seller warrants for a period of twenty years from the date of completion of installation against rust through on the framing only assuming normal user care and maintenance on 12 gauge material only. This warranty does NOT apply to 14 gauge materials. BALANCES OWING: All unpaid balances must be paid in full at the time of installation. If balances due and owing are unpaid, Pacific Metal Buildings Inc. reserves the right to repossess the carport/garage and/ or charge a 10% per annum interest fee. If you choose to cancel the installation of the structure, Pacific Metal Buildings Inc. is not responsible for returning your 10% down payment. Upon cancellation, you will be required to get your 10% back from the Dealer you paid it to. ALL SPECIAL ORDERS REQUIRE A NON-REFUNDABLE 60% DOWN PAYMENT PRIOR TO THE COMMENCEMENT OF ANY WORK, DESIGN, OR FABRICATION. This is a contract. By signing this, customer acknowledges and agrees with all of the above terms and the terms contained on the reverse side of this document. This contract is NOT final until review/approval by Pacific Metal Buildings Inc. Balance to be paid in full at time of installation to Pacific Metal Buildings Inc. by Check, Money Order, Visa, Master Card or Discover Card.
A44: CUSTOMER SIGNATURE | P44: DEALER SIGNATURE
A50: 1. Prices, Payment and Risk of Loss. a. Prices contained in Seller’s published price lists, if any, are subject to change without notice. Prices in individual written quotations or proposals are firm only for a period of thirty (30) days from the date of the quotation after which Buyer should inquire of Seller as to their validity and request a written confirmation or revision. Prices do no include taxes and Buyer shall pay all applicable sales or other taxes levied with respect to Goods (and replacements) in the Agreement, unless exempt therefrom. All prices are in United States dollars. Buyer shall pay all government fees levied on the installation and inspection of the Goods. Buyer shall pay upon receipt all invoices rendered by Seller for any such items Seller may pay and for the Goods. b. This Agreement is for the delivery and erection of fabricated metal structures and the Goods shall be delivered F.O.B. the Buyer’s place of delivery. Risk of loss passes to the Buyer upon tender of the Goods to the buyer. Seller’s breach of the Agreement shall not affect the passing of the risk of loss to Buyer notwithstanding any provision of law to the contrary. c. Seller may unilaterally increase prices to cover increased costs (plus reasonable overhead and profit) of design, materials, and manufacturing required by changes requested by buyer after the date of any quotation. d. All amounts not paid to Seller when due shall incur a carrying charge of 10% per annum to the extent allowed by law and otherwise at the highest written contract rate allowed by law. e. All amounts due on installation or other event which requires the action or cooperation of Buyer which Buyer fails to supply timely shall become due upon such failure. 2. Delivery. Shipping and installation dates are estimated based on Seller’s present engineering and manufacturing capacity and scheduling, and may be revised by Seller upon receipt or scheduling of Buyer’s order. All shipping dates are approximate and shall be computed from the date of entry of the order on Seller’s books. All shipping dates are further subject to seller’s prompt receipt from Buyer of written purchase order to acceptance, letter of credit, down payment, and other conditions as specified in the Agreement, and of all drawings, information and approvals necessary to provide the Goods and to grant any credit proposed in the Agreement. 3. Delay of Shipment or Performance Excused for Various Reason. a. If shipment of any item or other performance by Seller is delayed at the request or due to the fault of the Buyer, the seller may at its option hold the item at the place of manufacture at the risk and expense of the Buyer from the time it is ready for shipment. In the event of any such delay in shipment, full and final payment for an item shall be due and payable thirty (30) days after the Buyer is notified t the item is ready for shipment. If the Seller is unwilling to accommodate the Buyer by holding such item, the Buyer shall accept shipment immediately. b. Dates for Seller’s performance are estimates only. In addition, the Seller shall not be in default because of its delay or failure to deliver or perform resulting, in whole or in part, from: (i) any foreign or domestic embargoes, seizures, acts of God, insurrections, war, or the adoption or enactment of any law, ordinance, regulation, ruling or order, or (ii) the lack of usual means of transportation, fires, floods, explosions, strikes, or any other accidents, contingencies, or events, at the Seller’s or its supplier’s plant or elsewhere (whether or not beyond the Seller’s control) which directly or indirectly interfere with, or render substantially more burdensome, Seller’s production, deliver, or performance. 4. Inspection Testing and Rejection. a. If the Agreement expressly provides for Buyer’s inspection and/or acceptance of the Goods, Seller’s standard test procedures conducted by Seller’s representative shall be the criteria for inspection and/or acceptance, unless other specific procedures have been specified in the Agreement. b. All drawings, specifications, technical documentation, samples, prototypes and Goods shall be deemed approved and/or accepted by Buyer if Buyer does not provide a written objection and/or rejection with seven (7) days of receipt or their reasonable time established by Seller. Any objection and/ or rejection by the Buyer must be in writing and state with specificity all defects and non-conformities upon which Buyer will rely to support its rejection. ALL DEFECTS AND NON-CONFORMITIES WHICH ARE NOT SO SPECIFIED ARE WAVED. 5. Customer Responsible for Locating Underground Utilities. It is the sole responsibility of the customer to provide the factory approved independent contractor installers with the location of any underground cables, gas lines, or other utilities. This may include contacting the utility company to request that the locations of underground utilities be marked. Pacific Metal Building, Inc. is | Q50: 20 YEAR LIMITED WARRANTY 1. Limited Warranty. Seller warrants for a period of twenty years from the date of completion of installation against rust through on the framing only assuming normal user care and maintenance on 12 gauge material only. This warranty does NOT apply to 14 gauge materials. 2. Warranty Disclaimer. THE WARRANTIES IN THIS AGREEMENT ARE IN LIEU OF ALL OTHER WARRANTIES EXPRESS OR IMPLIED, INCLUDING WITHOUT LIMITATION ANY WARRANTIES OR MERCHANTABILITY OR FITNESS FOR A PARTICULAR PURPOSE, WHICH ARE EXPRESSLY DISCLAIMED. 3. Remedy. Buyer agrees that its sole and exclusive remedy against seller will be limited to the repair and replacement of non-conforming goods at the warrantor’s option, provided seller is notified in writing of any defect. However, warrantor will not elect refund unless it is unable to provide replacement, and repair is not commercially practicable and cannot be made within the time for performance. This exclusive remedy will not be deemed to have failed of its essential purpose so long as seller is willing and able to repair or replace the defective parts and, in any event, seller’s liability for any damages due buyer will be limited to the purchase price of the goods. THIS PARAGRAPH STATES BUYER’S SOLE AND EXCLUSIVE REMEDY FOR BREACH OF WARRANTY. 4. Limitation on Liability. THE MAXIMUM LIABILITY, IF ANY, OF SELLER FOR ALL DAMAGES AND DAMAGES FOR INJURIES TO PERSONS OR PROPERTY, WHETHER ARISING FROM SELLER’S BREACH OF THIS AGREEMENT, BREACH OF WARRANTY, NEGLIGENCE, STRICT LIABILITY, OR OTHER TORT, WITH RESPECT TO THE GOODS, OR ANY SERVICES IN CONNECTION WITH THE GOODS, IS LIMITED TO ANY AMOUNT NOT TO EXCEED THE PURCHASE PRICE OF THE GOODS. IN NO EVENT WILL SELLER BE LIABLE TO BUYER AND/OR ANY THIRD PARTIES FOR ANY INCIDENTAL DAMAGES, CONSEQUENTIAL DAMAGES, SPECIAL DAMAGES, EXEMPLARY DAMAGES OR LABOR CHARGES, INCLUDING WITHOUT LIMITATION LOST REVENUE AND PROFITS, EVEN IF IT HAS BEEN ADVISED OF THE POSSIBILITY OF SUCH DAMAGES. NOTE: SOME STATES DO NOT ALLOW THE EXCLUSION OR LIMITATION OF INCIDENTAL OR CONSEQUENTIAL DAMAGES, SO THE ABOVE LIMITATION OR EXCLUSION MAY NOT APPLY TO YOU. 5. Warranty Limited to Original Purchaser. This warranty extends only to the original purchaser of the product warranted by this document. Said warranty does not extend to transferee owners of the product. 6. Exclusions and Limitations. Pacific Metal Buildings Inc. does not warrant and products not installed and anchored by a factory approved installer utilizing a factory approved anchoring system. Installation by other than a factory approved installer utilizing a factory approved anchoring system will VOID your warranty. Damages from improper anchoring, strong winds, snow or ice are not considered defects. Pacific Metal Buildings Inc. does not warrant any temporary anchoring systems (i.e. rebar) utilized by the customer, nor shall Pacific Metal Buildings Inc. be in any way responsible for damage caused by the use of such temporary anchoring systems. Additionally, Pacific Metal Buildings Inc. does not warrant any damages caused to products resulting from movement of the structure from the original installation point. 7. Ceiling Fans Void Warranty. The installation of a ceiling fan anywhere on the structure, not matter how it is installed VOIDS all warranties. The structure is not designed for them and they should not be used. 8. Modification of Structure Voids Warranty. Any modification, addition, deletion, substitution, etc. to the structure without express written design approval by Pacific Metal Buildings Inc. will VOID the warranty. Our products are designed and specifically engineered to provide superior performance as manufactured. Any changes to the design by the Buyer could compromise the structural integrity of the unit. 9. Claims Procedure. Any claim under this warranty must be in writing and sent to Pacific Metal Buildings Inc., 270 Old Hwy 99, Maxwell, CA 95955 and be received within 30 days of discovering claimed defect. This written notification must include a description of the defect, proof of purchase, and the address of the installed product. As Pacific Metal Buildings Inc. must have a reasonable opportunity to inspect the claim, do not begin any repairs prior to said inspection or the terms of the warranty could be voided.
A52: PACIFIC METAL BUILDIGNS 12/09/2019
A53: We would like to thank you for your recent metal building/carport purchase. We have listed a few key points to keep in mind prior to installation to make sure you are happy with your finished product.
A54: 1.Delivery time frames are consistently changing due to weather, holidays and workloads. Please keep in mind that the estimated time frames are subject to change, but we try our hardest to get you the most accurate schedule in a timely manner. If you are going through the permit process, your turn around time for installation DOES NOT begin until your permit is approved so please make sure you contact our office once your permit has been approved so that we may begin your turn around time for installation. Otherwise; we will only assume that you are still pending on permit approval therefore, delaying your installation dates. 2.Confirming installation dates with scheduling department and canceling dates assigned will result in a $350 restocking fee. 3.We will call you approximately 2-3days before installation to schedule your delivery date and approximate time. Saturdays and Sundays are not available for installation dates. If you desire a weekend installation a $200.00 minimum fee will be charged per day. 4.Please keep in mind that your ground surface MUST BE LEVEL and CLEARED prior to installation. If you have an RV or any object and cannot remove them from area of installation, a build over fee will be applied. Slopes front to back and side to side effect proper installation of buildings. There will be a labor charge if any surface is unleveled and adjustments are done to buildings at time of installation. We do not do any ground/foundation work so if the job site is not suitable upon arrival, we will not install your unit and an automatic $350 restocking fee will also be added to your balance due. 5.If there are any utility lines onsite, PMB Inc may contact US Locates prior to your installation. This is a free service that is offered by the City Utilities Departments. US locates will mark any local underground line, they do not detect any private lines. You will be responsible to hire someone local to mark those private lines. You are responsible to mark the job site in White paint/chalk. This must be done in white only. 6.If you are going through the permit process, please let us know at the time of order. A set of free Generic Engineer Drawings can be provided with every standard size building/unit if proper anchoring system was purchased. These drawings are not guaranteed to work for all permit purposes in all city/county building departments. Upon request per your building department and for an additional fee, you may also order Engineered Specifications and or Calculations. 7.Installers need adequate space on all 4 sides of your unit to build. A minimum of 3’-4’ clearance per side and per end as well as above the eave height clear space is required onsite. Please feel free to send us pictures of the area if you have any questions about whether the building will fit correctly in your space. Lack of required workspace will result in additional labor charge. 8.Buildings that are 13’ tall OR Buildings 26’wide-30’wide as tall as 12’ will require a forklift onsite for installation. PMB Inc may bill you for a forklift onsite unless you can provide forklift onsite. That forklift must lift at least 21’ 9.Please double check all measurements prior to installation and make sure our order represents those measurements well taking in consideration 3’-4’clearance all around.
A56: By signing this form, I acknowledge all terms listed above.
A57: X
